[Event "Moscow-Open 2021_A"]
[Site "Moscow, Russia"]
[Date "2021.02.27"]
[Round "8.3"]
[White "Kukhmazov, Arsen"]
[Black "Lobanov, Sergei"]
[Result "1/2-1/2"]
[ECO "E15"]
[WhiteElo "2442"]
[BlackElo "2516"]
[Annotator "zimin"]
[PlyCount "81"]
[EventDate "2021.??.??"]
[TimeControl "90+30"]
[WhiteClock "1:00:58"]
[BlackClock "0:26:57"]

{[%evp 0,72,45,17,38,-9,-9,-9,19,-6,26,-23,17,38,41,45,51,-11,-20,-20,7,-22,
-12,-56,0,-16,0,-53,-53,-53,-3,3,-8,-11,-1,-15,-18,-34,3,-37,7,5,18,5,20,32,32,
13,44,42,42,35,35,29,30,9,9,-30,-12,1,-6,-4,1,0,-2,-2,-2,-4,17,19,16,0,0,0,0]}
1. d4 {[%emt 0:00:00]} Nf6 {[%emt 0:00:00]} 2. c4 {[%emt 0:00:00]} e6 {[%emt 0:
00:00]} 3. Nf3 {[%emt 0:00:00]} b6 {[%emt 0:00:00]} 4. g3 {[%emt 0:00:00]} Ba6
{[%emt 0:00:00]} 5. Qc2 {[%emt 0:00:00]} c5 {[%emt 0:00:00]} 6. d5 {[%emt 0:00:
00]} exd5 {[%emt 0:00:00]} 7. cxd5 {[%emt 0:00:00]} Bb7 {[%emt 0:00:00]} 8. Bg2
{[%emt 0:00:00]} Nxd5 {[%emt 0:00:00]} 9. O-O {[%emt 0:00:00]} Be7 {[%emt 0:00:
00]} 10. Rd1 {[%emt 0:00:00]} Nc6 {[%emt 0:00:00]} 11. Qa4 {[%emt 0:00:00]} Nf6
{[%emt 0:00:00]} 12. Nh4 {[%emt 0:00:00]} O-O {[%emt 0:00:00]} 13. Nf5 {
[%emt 0:00:00]} d5 {[%emt 0:00:00]} 14. Nc3 {[%emt 0:00:00]} Nd4 {[%emt 0:00:
00]} 15. Nxd4 {[%emt 0:00:00]} cxd4 {[%emt 0:00:00]} 16. Rxd4 {[%emt 0:00:00]}
Bc5 {[%emt 0:00:00]} 17. Rd3 {[%emt 0:00:00]} Qe8 {[%emt 0:00:00]} 18. Qh4 {
[%emt 0:00:00]} Ne4 {[%emt 0:00:00]} 19. Be3 {[%emt 0:00:00]} Nxc3 {[%emt 0:00:
00]} 20. bxc3 {[%emt 0:00:00]} Rc8 {[%emt 0:00:00]} 21. Rad1 {[%emt 0:00:00]}
Be7 {[%emt 0:00:00]} 22. Qh5 {[%emt 0:00:00]} Bf6 {[%emt 0:00:00]} 23. Bxd5 {
[%emt 0:00:00]} Ba6 {[%emt 0:00:00]} 24. c4 {[%emt 0:00:00]} Bxc4 {[%emt 0:00:
00]} 25. Bxc4 {[%emt 0:00:00]} Rxc4 {[%emt 0:00:00]} 26. Rd7 {[%emt 0:00:00]}
Ra4 {[%emt 0:00:00]} 27. Qd5 {[%emt 0:00:00]} Qe6 {[%emt 0:00:00]} 28. Rd2 {
[%emt 0:00:00]} Qxd5 {[%emt 0:00:00]} 29. R7xd5 {[%emt 0:00:00]} h6 {[%emt 0:
00:00]} 30. Bd4 {[%emt 0:00:00]} Bxd4 {[%emt 0:00:00]} 31. R5xd4 {[%emt 0:00:
00]} Rxd4 {[%emt 0:00:00]} 32. Rxd4 {[%emt 0:00:00]} Rc8 {[%emt 0:00:00]} 33.
Rd7 {[%emt 0:00:00]} Rc2 {[%emt 0:00:00]} 34. Rxa7 {[%emt 0:00:00]} Rxe2 {
[%emt 0:00:00]} 35. Rb7 {[%emt 0:00:00]} Rxa2 {[%emt 0:00:00]} 36. Rxb6 {
[%emt 0:00:00]} h5 {[%emt 0:00:00]} 37. h4 {[%emt 0:00:00]} g6 {[%emt 0:00:00]}
38. Kg2 {[%emt 0:00:00]} Kg7 {[%emt 0:00:00]} 39. Rb7 {[%emt 0:00:00]} Rc2 {
[%emt 0:00:00]} 40. Rd7 {[%emt 0:00:00]} Rb2 {[%emt 0:00:00]} 41. Ra7 {[%emt 0:
00:00]} 1/2-1/2

[Event "Moscow-Open 2021_A"]
[Site "Moscow, Russia"]
[Date "2021.02.27"]
[Round "8.4"]
[White "Faizrakhmanov, Ramil"]
[Black "Nesterov, Arseniy"]
[Result "1/2-1/2"]
[ECO "D33"]
[WhiteElo "2476"]
[BlackElo "2476"]
[Annotator "zimin"]
[PlyCount "99"]
[EventDate "2021.??.??"]
[TimeControl "90+30"]
[WhiteClock "0:09:55"]
[BlackClock "0:08:26"]

{[%evp 0,57,44,13,17,8,-9,-9,7,-10,46,44,37,25,10,-12,28,36,33,25,25,19,53,52,
30,19,19,19,18,-2,-8,-8,12,15,15,15,38,21,21,5,9,20,26,4,7,-10,55,54,60,53,48,
19,14,-1,70,6,47,17,16,22]} 1. d4 {[%emt 0:00:00]} d5 {[%emt 0:00:00]} 2. c4 {
[%emt 0:00:00]} e6 {[%emt 0:00:00]} 3. Nf3 {[%emt 0:00:00]} Nf6 {[%emt 0:00:00]
} 4. Nc3 {[%emt 0:00:00]} c5 {[%emt 0:00:00]} 5. cxd5 {[%emt 0:00:00]} exd5 {
[%emt 0:00:00]} 6. g3 {[%emt 0:00:00]} Nc6 {[%emt 0:00:00]} 7. Bg2 {[%emt 0:00:
00]} cxd4 {[%emt 0:00:00]} 8. Nxd4 {[%emt 0:00:00]} Bc5 {[%emt 0:00:00]} 9. Nb3
{[%emt 0:00:00]} Bb6 {[%emt 0:00:00]} 10. O-O {[%emt 0:00:00]} d4 {[%emt 0:00:
00]} 11. Na4 {[%emt 0:00:00]} O-O {[%emt 0:00:00]} 12. Bg5 {[%emt 0:00:00]} Re8
{[%emt 0:00:00]} 13. Nxb6 {[%emt 0:00:00]} axb6 {[%emt 0:00:00]} 14. Re1 {
[%emt 0:00:00]} h6 {[%emt 0:00:00]} 15. Bxc6 {[%emt 0:00:00]} bxc6 {[%emt 0:00:
00]} 16. Bxf6 {[%emt 0:00:00]} Qxf6 {[%emt 0:00:00]} 17. Qxd4 {[%emt 0:00:00]}
Qd8 {[%emt 0:00:00]} 18. Qc3 {[%emt 0:00:00]} c5 {[%emt 0:00:00]} 19. Nc1 {
[%emt 0:00:00]} Bb7 {[%emt 0:00:00]} 20. f3 {[%emt 0:00:00]} Ra4 {[%emt 0:00:
00]} 21. Nd3 {[%emt 0:00:00]} Ba6 {[%emt 0:00:00]} 22. Nf4 {[%emt 0:00:00]}
Qd4+ {[%emt 0:00:00]} 23. Qxd4 {[%emt 0:00:00]} Rxd4 {[%emt 0:00:00]} 24. e4 {
[%emt 0:00:00]} Rd2 {[%emt 0:00:00]} 25. b3 {[%emt 0:00:00]} Red8 {[%emt 0:00:
00]} 26. Rec1 {[%emt 0:00:00]} R8d4 {[%emt 0:00:00]} 27. Nd5 {[%emt 0:00:00]}
Rb2 {[%emt 0:00:00]} 28. Rab1 {[%emt 0:00:00]} Rxa2 {[%emt 0:00:00]} 29. Ra1 {
[%emt 0:00:00]} Rxa1 {[%emt 0:00:00]} 30. Rxa1 {[%emt 0:00:00]} Be2 {[%emt 0:
00:00]} 31. Kf2 {[%emt 0:00:00]} Bd1 {[%emt 0:00:00]} 32. Ke3 {[%emt 0:00:00]}
Bxb3 {[%emt 0:00:00]} 33. Nxb6 {[%emt 0:00:00]} Rd6 {[%emt 0:00:00]} 34. Ra8+ {
[%emt 0:00:00]} Kh7 {[%emt 0:00:00]} 35. Rb8 {[%emt 0:00:00]} Be6 {[%emt 0:00:
00]} 36. Na4 {[%emt 0:00:00]} Rc6 {[%emt 0:00:00]} 37. Rb5 {[%emt 0:00:00]} c4
{[%emt 0:00:00]} 38. Nc3 {[%emt 0:00:00]} Ra6 {[%emt 0:07:55]} 39. f4 {[%emt 0:
01:36]} Rd6 {[%emt 0:02:09]} 40. Nd5 {[%emt 0:08:09]} f5 {[%emt 0:00:09]} 41.
Rb6 {[%emt 0:02:10]} Rxb6 {[%emt 0:00:17]} 42. Nxb6 {[%emt 0:00:05]} fxe4 {
[%emt 0:00:07]} 43. Kxe4 {[%emt 0:00:16]} Kg6 {[%emt 0:00:17]} 44. Kd4 {
[%emt 0:00:30]} Kf5 {[%emt 0:00:08]} 45. Nxc4 {[%emt 0:00:37]} Bxc4 {[%emt 0:
05:40]} 46. Kxc4 {[%emt 0:00:06]} Kg4 {[%emt 0:00:03]} 47. Kd4 {[%emt 0:01:12]}
Kh3 {[%emt 0:00:10]} 48. Ke4 {[%emt 0:01:05]} Kxh2 {[%emt 0:00:08]} 49. Kf3 {
[%emt 0:00:19]} h5 {[%emt 0:00:31]} 50. Ke4 {[%emt 0:00:19]} 1/2-1/2

[Event "Moscow-Open 2021_A"]
[Site "Moscow, Russia"]
[Date "2021.02.27"]
[Round "8.5"]
[White "Makarian, Rudik"]
[Black "Gubajdullin, Alexei"]
[Result "1-0"]
[ECO "D15"]
[WhiteElo "2458"]
[BlackElo "2347"]
[Annotator "zimin"]
[PlyCount "65"]
[EventDate "2021.??.??"]
[TimeControl "90+30"]
[WhiteClock "0:40:08"]
[BlackClock "0:07:11"]

{[%evp 0,40,36,17,15,-9,35,24,35,35,85,55,77,61,66,43,38,-8,32,32,42,25,25,43,
87,85,85,85,92,140,108,128,205,167,481,481,481,384,384,383,383,383,387]} 1. d4
{[%emt 0:00:00]} Nf6 {[%emt 0:00:00]} 2. c4 {[%emt 0:00:00]} c6 {[%emt 0:00:00]
} 3. Nf3 {[%emt 0:00:00]} d5 {[%emt 0:00:00]} 4. Nc3 {[%emt 0:00:00]} a6 {
[%emt 0:00:00]} 5. e3 {[%emt 0:00:00]} b5 {[%emt 0:00:00]} 6. c5 {[%emt 0:00:
00]} Bg4 {[%emt 0:00:00]} 7. Qb3 {[%emt 0:00:00]} Nbd7 {[%emt 0:00:00]} 8. a4 {
[%emt 0:00:00]} Bxf3 {[%emt 0:00:00]} 9. gxf3 {[%emt 0:00:00]} e5 {[%emt 0:00:
00]} 10. Na2 {[%emt 0:00:00]} exd4 {[%emt 0:00:00]} 11. exd4 {[%emt 0:00:00]}
Be7 {[%emt 0:00:00]} 12. Nb4 {[%emt 0:00:00]} Rc8 {[%emt 0:00:00]} 13. axb5 {
[%emt 0:00:00]} axb5 {[%emt 0:00:00]} 14. Bh3 {[%emt 0:00:00]} O-O {[%emt 0:00:
00]} 15. O-O {[%emt 0:00:00]} Nh5 {[%emt 0:00:00]} 16. Ra7 {[%emt 0:00:00]} f5
{[%emt 0:00:00]} 17. Nxc6 {[%emt 0:00:00]} Nxc5 {[%emt 0:00:00]} 18. Qxd5+ {
[%emt 0:00:00]} Qxd5 {[%emt 0:00:00]} 19. Nxe7+ {[%emt 0:00:00]} Kh8 {[%emt 0:
00:00]} 20. Nxd5 {[%emt 0:00:00]} Nb3 {[%emt 0:00:00]} 21. Bg5 {[%emt 0:00:00]}
Nxd4 {[%emt 0:00:00]} 22. Be7 {[%emt 0:00:00]} Rfe8 {[%emt 0:00:00]} 23. Rd1 {
[%emt 0:00:00]} Rc4 {[%emt 0:06:12]} 24. Ne3 {[%emt 0:00:00]} Nxf3+ {[%emt 0:
01:00]} 25. Kg2 {[%emt 0:00:00]} Nh4+ {[%emt 0:00:18]} 26. Bxh4 {[%emt 0:00:00]
} Rxh4 {[%emt 0:00:01]} 27. Bxf5 {[%emt 0:00:00]} Rb4 {[%emt 0:00:30]} 28. Rd2
{[%emt 0:00:00]} Rf8 {[%emt 0:00:11]} 29. Rf7 {[%emt 0:00:00]} Rb8 {[%emt 0:00:
18]} 30. Bg4 {[%emt 0:00:00]} Nf6 {[%emt 0:01:08]} 31. Bf3 {[%emt 0:00:00]} Rf4
{[%emt 0:00:19]} 32. Nd5 {[%emt 0:00:00]} Nxd5 {[%emt 0:00:22]} 33. Bxd5 {
[%emt 0:00:00]} 1-0

[Event "Moscow-Open 2021_A"]
[Site "Moscow, Russia"]
[Date "2021.02.27"]
[Round "8.6"]
[White "Maltsevskaya, Aleksandra"]
[Black "Bocharov, Ivan"]
[Result "0-1"]
[ECO "E05"]
[WhiteElo "2327"]
[BlackElo "2568"]
[Annotator "zimin"]
[PlyCount "90"]
[EventDate "2021.??.??"]
[TimeControl "90+30"]
[WhiteClock "0:00:32"]
[BlackClock "0:20:46"]

{[%evp 0,67,17,17,17,29,32,-10,-10,-40,-17,-10,11,-30,17,22,22,-1,-27,-17,-23,
-51,-63,-63,-63,-134,-134,-134,-79,-90,-62,-64,-64,-42,-35,-50,-50,-72,-30,-68,
-27,-27,-5,-11,6,28,-9,-38,-41,-62,-41,-41,-41,-58,-58,-90,-61,-124,-48,-120,
-79,-96,-74,-220,-315,-267,-173,-198,-201,-211]} 1. d4 {[%emt 0:00:00]} Nf6 {
[%emt 0:00:00]} 2. Nf3 {[%emt 0:00:00]} e6 {[%emt 0:00:00]} 3. c4 {[%emt 0:00:
00]} d5 {[%emt 0:00:00]} 4. g3 {[%emt 0:00:00]} Be7 {[%emt 0:00:00]} 5. Bg2 {
[%emt 0:00:00]} O-O {[%emt 0:00:00]} 6. O-O {[%emt 0:00:00]} dxc4 {[%emt 0:00:
00]} 7. Ne5 {[%emt 0:00:00]} Nc6 {[%emt 0:00:00]} 8. Nxc6 {[%emt 0:00:00]} bxc6
{[%emt 0:00:00]} 9. Nc3 {[%emt 0:00:00]} Rb8 {[%emt 0:00:00]} 10. Qa4 {[%emt 0:
00:00]} Qxd4 {[%emt 0:00:00]} 11. Be3 {[%emt 0:00:00]} Qe5 {[%emt 0:00:00]} 12.
Qxa7 {[%emt 0:00:00]} Rxb2 {[%emt 0:00:00]} 13. Bd4 {[%emt 0:00:00]} Qh5 {
[%emt 0:00:00]} 14. Qxc7 {[%emt 0:00:00]} c5 {[%emt 0:00:00]} 15. Bf3 {[%emt 0:
00:00]} Ng4 {[%emt 0:00:00]} 16. Bxg4 {[%emt 0:00:00]} Qxg4 {[%emt 0:00:00]}
17. Nd5 {[%emt 0:00:00]} exd5 {[%emt 0:00:00]} 18. Bxb2 {[%emt 0:00:00]} Qxe2 {
[%emt 0:00:00]} 19. Rfe1 {[%emt 0:00:00]} Qxb2 {[%emt 0:00:00]} 20. Qxe7 {
[%emt 0:00:00]} Qa3 {[%emt 0:00:00]} 21. Rab1 {[%emt 0:00:00]} g6 {[%emt 0:00:
00]} 22. Rb5 {[%emt 0:00:00]} Qxa2 {[%emt 0:00:00]} 23. Rxc5 {[%emt 0:00:00]}
Qd2 {[%emt 0:00:00]} 24. Re5 {[%emt 0:00:53]} Qd1+ {[%emt 0:00:00]} 25. Re1 {
[%emt 0:00:09]} Qd4 {[%emt 0:00:00]} 26. Qd6 {[%emt 0:08:35]} Be6 {[%emt 0:00:
00]} 27. h4 {[%emt 0:00:04]} h5 {[%emt 0:00:00]} 28. Qe7 {[%emt 0:04:15]} Qg4 {
[%emt 0:00:00]} 29. Rc6 {[%emt 0:00:28]} d4 {[%emt 0:00:00]} 30. Rd6 {[%emt 0:
01:28]} d3 {[%emt 0:00:00]} 31. Rexe6 {[%emt 0:00:36]} fxe6 {[%emt 0:00:00]}
32. Rd8 {[%emt 0:00:29]} Qf5 {[%emt 0:00:00]} 33. Rxf8+ {[%emt 0:00:05]} Qxf8 {
[%emt 0:00:00]} 34. Qxe6+ {[%emt 0:00:07]} Qf7 {[%emt 0:00:00]} 35. Qd6 {
[%emt 0:00:10]} Kh7 {[%emt 0:00:00]} 36. Kf1 {[%emt 0:00:43]} Qb7 {[%emt 0:00:
00]} 37. Ke1 {[%emt 0:00:50]} Qb1+ {[%emt 0:01:10]} 38. Kd2 {[%emt 0:00:04]}
Qc2+ {[%emt 0:00:04]} 39. Ke3 {[%emt 0:00:02]} Qe2+ {[%emt 0:00:28]} 40. Kd4 {
[%emt 0:00:12]} d2 {[%emt 0:00:39]} 41. Qc7+ {[%emt 0:00:12]} Kh6 {[%emt 0:00:
21]} 42. Qf4+ {[%emt 0:00:11]} Kg7 {[%emt 0:00:01]} 43. Qc7+ {[%emt 0:00:06]}
Kf6 {[%emt 0:00:12]} 44. Qd6+ {[%emt 0:02:42]} Kf7 {[%emt 0:00:11]} 45. Qd5+ {
[%emt 0:01:07]} Kg7 {[%emt 0:00:08]} 0-1

[Event "Moscow-Open 2021_A"]
[Site "Moscow, Russia"]
[Date "2021.02.28"]
[Round "9.1"]
[White "Afanasiev, Nikita"]
[Black "Rozum, Ivan"]
[Result "1/2-1/2"]
[ECO "B12"]
[WhiteElo "2519"]
[BlackElo "2546"]
[Annotator "zimin"]
[PlyCount "59"]
[EventDate "2021.??.??"]
[TimeControl "90+30"]
[WhiteClock "1:17:52"]
[BlackClock "1:40:03"]

{[%evp 0,59,16,28,79,69,65,74,52,53,53,40,73,36,43,0,67,44,34,-40,-30,-30,13,
19,25,-124,57,-47,-20,-10,-22,-22,35,32,43,40,23,-13,-7,-51,-60,-93,-45,-83,
-35,-90,-91,0,0,0,0,0,-22,0,0,-36,0,0,0,0,0,-21]} 1. e4 {[%emt 0:00:00]} c6 {
[%emt 0:00:00]} 2. d4 {[%emt 0:00:00]} d5 {[%emt 0:00:00]} 3. e5 {[%emt 0:00:
00]} Bf5 {[%emt 0:00:00]} 4. Nf3 {[%emt 0:00:00]} e6 {[%emt 0:00:00]} 5. Be2 {
[%emt 0:00:00]} c5 {[%emt 0:00:00]} 6. Be3 {[%emt 0:00:00]} Qb6 {[%emt 0:00:00]
} 7. Nc3 {[%emt 0:00:00]} Nc6 {[%emt 0:00:00]} 8. O-O {[%emt 0:00:00]} Qxb2 {
[%emt 0:00:00]} 9. Qe1 {[%emt 0:00:00]} cxd4 {[%emt 0:00:00]} 10. Bxd4 {
[%emt 0:00:00]} Nxd4 {[%emt 0:00:00]} 11. Nxd4 {[%emt 0:00:00]} Bb4 {[%emt 0:
00:00]} 12. Ndb5 {[%emt 0:00:00]} Ba5 {[%emt 0:00:00]} 13. Rb1 {[%emt 0:00:00]}
Qxc2 {[%emt 0:00:00]} 14. Rc1 {[%emt 0:00:00]} Qb2 {[%emt 0:00:00]} 15. Na4 {
[%emt 0:00:00]} Bxe1 {[%emt 0:00:00]} 16. Nxb2 {[%emt 0:00:00]} Ba5 {[%emt 0:
00:00]} 17. Nd6+ {[%emt 0:00:00]} Ke7 {[%emt 0:00:00]} 18. Nxb7 {[%emt 0:00:00]
} Bd8 {[%emt 0:00:00]} 19. g4 {[%emt 0:00:00]} Bg6 {[%emt 0:00:00]} 20. Rc6 {
[%emt 0:00:00]} h5 {[%emt 0:00:00]} 21. Nxd8 {[%emt 0:00:00]} Rxd8 {[%emt 0:00:
00]} 22. Rfc1 {[%emt 0:00:00]} hxg4 {[%emt 0:00:00]} 23. Rc7+ {[%emt 0:00:00]}
Kf8 {[%emt 0:00:00]} 24. Rc8 {[%emt 0:00:00]} Rxc8 {[%emt 0:00:00]} 25. Rxc8+ {
[%emt 0:00:00]} Ke7 {[%emt 0:00:00]} 26. Bb5 {[%emt 0:00:00]} f6 {[%emt 0:00:
00]} 27. Rc7+ {[%emt 0:00:00]} Kf8 {[%emt 0:00:00]} 28. Rc8+ {[%emt 0:00:00]}
Ke7 {[%emt 0:00:00]} 29. Rc7+ {[%emt 0:00:00]} Kf8 {[%emt 0:00:00]} 30. Rc8+ {
[%emt 0:00:00]} 1/2-1/2

[Event "Moscow-Open 2021_A"]
[Site "Moscow, Russia"]
[Date "2021.02.28"]
[Round "9.2"]
[White "Stupak, Kirill"]
[Black "Bocharov, Ivan"]
[Result "0-1"]
[ECO "D59"]
[WhiteElo "2492"]
[BlackElo "2568"]
[Annotator "zimin"]
[PlyCount "182"]
[EventDate "2021.??.??"]
[TimeControl "90+30"]
[WhiteClock "0:02:53"]
[BlackClock "0:20:05"]

{[%evp 0,65,28,10,26,4,-23,-23,4,-18,13,-3,33,-37,-6,-6,40,10,34,33,42,28,28,
21,36,4,30,3,-2,-6,-6,-6,-8,-37,4,-8,5,-1,-3,-41,-32,-36,-24,-22,-9,-35,-27,
-35,-23,-39,-39,-37,-38,-35,-25,-41,-28,-29,-26,-26,-27,-35,-33,-37,-31,-34,
-24,-44]} 1. d4 {[%emt 0:00:00]} d5 {[%emt 0:00:00]} 2. c4 {[%emt 0:00:00]} e6
{[%emt 0:00:00]} 3. Nf3 {[%emt 0:00:00]} Nf6 {[%emt 0:00:00]} 4. Nc3 {[%emt 0:
00:00]} Be7 {[%emt 0:00:00]} 5. Bg5 {[%emt 0:00:00]} h6 {[%emt 0:00:00]} 6. Bh4
{[%emt 0:00:00]} O-O {[%emt 0:00:00]} 7. e3 {[%emt 0:00:00]} b6 {[%emt 0:00:00]
} 8. cxd5 {[%emt 0:00:00]} Nxd5 {[%emt 0:00:00]} 9. Bxe7 {[%emt 0:00:00]} Qxe7
{[%emt 0:00:00]} 10. Rc1 {[%emt 0:00:00]} Bb7 {[%emt 0:00:00]} 11. Be2 {
[%emt 0:00:00]} Rd8 {[%emt 0:00:00]} 12. Qc2 {[%emt 0:00:00]} Nxc3 {[%emt 0:00:
00]} 13. Qxc3 {[%emt 0:00:00]} Nd7 {[%emt 0:00:00]} 14. O-O {[%emt 0:00:00]} c5
{[%emt 0:00:00]} 15. Rfd1 {[%emt 0:00:00]} a5 {[%emt 0:00:00]} 16. Qa3 {
[%emt 0:00:00]} Qf6 {[%emt 0:00:00]} 17. Qc3 {[%emt 0:00:00]} Qe7 {[%emt 0:00:
00]} 18. b3 {[%emt 0:00:00]} Rac8 {[%emt 0:00:00]} 19. dxc5 {[%emt 0:04:09]}
Nxc5 {[%emt 0:00:00]} 20. Rxd8+ {[%emt 0:00:00]} Rxd8 {[%emt 0:00:00]} 21. Rd1
{[%emt 0:00:00]} Rc8 {[%emt 0:00:00]} 22. Qb2 {[%emt 0:00:00]} Ne4 {[%emt 0:00:
00]} 23. Rc1 {[%emt 0:00:00]} Rc5 {[%emt 0:00:00]} 24. Rxc5 {[%emt 0:00:00]}
Qxc5 {[%emt 0:00:00]} 25. a3 {[%emt 0:00:00]} Nc3 {[%emt 0:00:00]} 26. Bc4 {
[%emt 0:00:25]} Bxf3 {[%emt 0:00:00]} 27. gxf3 {[%emt 0:04:34]} Nb5 {[%emt 0:
00:00]} 28. Bxb5 {[%emt 0:00:31]} Qg5+ {[%emt 0:00:00]} 29. Kf1 {[%emt 0:02:12]
} Qxb5+ {[%emt 0:00:00]} 30. Kg2 {[%emt 0:00:01]} a4 {[%emt 0:00:00]} 31. b4 {
[%emt 0:00:04]} Qg5+ {[%emt 0:00:00]} 32. Kf1 {[%emt 0:00:02]} Qf5 {[%emt 0:00:
00]} 33. Ke2 {[%emt 0:02:40]} Qb5+ {[%emt 0:00:00]} 34. Ke1 {[%emt 0:00:55]}
Qd3 {[%emt 0:00:00]} 35. b5 {[%emt 0:01:28]} Qc4 {[%emt 0:00:00]} 36. f4 {
[%emt 0:00:44]} f6 {[%emt 0:00:00]} 37. Kd2 {[%emt 0:00:59]} Kf7 {[%emt 0:00:
00]} 38. Qb1 {[%emt 0:00:54]} Ke7 {[%emt 0:00:00]} 39. Qd3 {[%emt 0:00:41]}
Qa2+ {[%emt 0:00:00]} 40. Ke1 {[%emt 0:00:11]} Qd5 {[%emt 0:00:00]} 41. Qc3 {
[%emt 0:00:58]} Qxb5 {[%emt 0:00:00]} 42. Qc7+ {[%emt 0:00:21]} Kf8 {[%emt 0:
00:00]} 43. Qd8+ {[%emt 0:00:37]} Kf7 {[%emt 0:00:00]} 44. Qc7+ {[%emt 0:00:22]
} Kg6 {[%emt 0:00:00]} 45. Qd6 {[%emt 0:00:38]} Qb3 {[%emt 0:00:00]} 46. Kd2 {
[%emt 0:00:33]} f5 {[%emt 0:00:00]} 47. Qe7 {[%emt 0:00:01]} Qb2+ {[%emt 0:00:
00]} 48. Ke1 {[%emt 0:00:44]} Qc1+ {[%emt 0:00:00]} 49. Ke2 {[%emt 0:00:02]}
Qc6 {[%emt 0:00:00]} 50. h3 {[%emt 0:01:04]} b5 {[%emt 0:00:00]} 51. Kd2 {
[%emt 0:00:14]} Qd5+ {[%emt 0:00:00]} 52. Ke2 {[%emt 0:00:26]} Qc4+ {[%emt 0:
00:00]} 53. Kd2 {[%emt 0:00:01]} Qa2+ {[%emt 0:00:00]} 54. Ke1 {[%emt 0:00:56]}
Qa1+ {[%emt 0:00:00]} 55. Ke2 {[%emt 0:00:20]} Qb2+ {[%emt 0:00:00]} 56. Kd1 {
[%emt 0:01:10]} Qf6 {[%emt 0:00:00]} 57. Qb4 {[%emt 0:00:32]} Qa1+ {[%emt 0:00:
07]} 58. Ke2 {[%emt 0:00:25]} Qa2+ {[%emt 0:00:09]} 59. Ke1 {[%emt 0:00:31]}
Qd5 {[%emt 0:01:28]} 60. Qe7 {[%emt 0:00:12]} Qh1+ {[%emt 0:02:30]} 61. Ke2 {
[%emt 0:00:39]} Qxh3 {[%emt 0:00:45]} 62. Qe8+ {[%emt 0:00:23]} Kh7 {[%emt 0:
00:01]} 63. Qxb5 {[%emt 0:00:04]} Qg4+ {[%emt 0:00:06]} 64. Kd2 {[%emt 0:01:08]
} Qf3 {[%emt 0:05:14]} 65. Qxa4 {[%emt 0:00:11]} Qxf2+ {[%emt 0:00:02]} 66. Kd3
{[%emt 0:00:14]} Qf1+ {[%emt 0:02:20]} 67. Kd2 {[%emt 0:00:48]} Qg2+ {[%emt 0:
01:48]} 68. Ke1 {[%emt 0:00:06]} Qd5 {[%emt 0:02:19]} 69. Kf2 {[%emt 0:00:35]}
Qd2+ {[%emt 0:01:25]} 70. Kf3 {[%emt 0:00:05]} g5 {[%emt 0:00:03]} 71. fxg5 {
[%emt 0:01:32]} hxg5 {[%emt 0:00:01]} 72. Qd4 {[%emt 0:00:30]} Qa2 {[%emt 0:01:
54]} 73. Qf6 {[%emt 0:00:33]} Qd5+ {[%emt 0:00:04]} 74. Ke2 {[%emt 0:00:31]} g4
{[%emt 0:00:40]} 75. Qf7+ {[%emt 0:00:30]} Kh6 {[%emt 0:00:01]} 76. Qf6+ {
[%emt 0:00:32]} Kh5 {[%emt 0:00:01]} 77. Qh8+ {[%emt 0:00:29]} Kg5 {[%emt 0:00:
01]} 78. Qg7+ {[%emt 0:00:17]} Kh4 {[%emt 0:00:16]} 79. Qh6+ {[%emt 0:00:24]}
Kg3 {[%emt 0:00:01]} 80. Qf4+ {[%emt 0:00:40]} Kh3 {[%emt 0:00:03]} 81. a4 {
[%emt 0:00:25]} g3 {[%emt 0:00:21]} 82. Qh6+ {[%emt 0:00:46]} Kg2 {[%emt 0:00:
01]} 83. Qf4 {[%emt 0:00:26]} Qa2+ {[%emt 0:00:44]} 84. Kd3 {[%emt 0:00:03]}
Qb1+ {[%emt 0:01:31]} 85. Kc3 {[%emt 0:00:03]} e5 {[%emt 0:00:54]} 86. Qh4 {
[%emt 0:00:02]} Qc1+ {[%emt 0:01:06]} 87. Kd3 {[%emt 0:00:24]} e4+ {[%emt 0:00:
28]} 88. Kd4 {[%emt 0:00:08]} Qa1+ {[%emt 0:00:03]} 89. Kd5 {[%emt 0:00:17]}
Qxa4 {[%emt 0:00:01]} 90. Ke5 {[%emt 0:00:15]} Qb5+ {[%emt 0:00:14]} 91. Kf6 {
[%emt 0:00:30]} Qf1 {[%emt 0:00:13]} 0-1

[Event "Moscow-Open 2021_A"]
[Site "Moscow, Russia"]
[Date "2021.02.28"]
[Round "9.3"]
[White "Lobanov, Sergei"]
[Black "Makarian, Rudik"]
[Result "1-0"]
[ECO "C41"]
[WhiteElo "2516"]
[BlackElo "2458"]
[Annotator "zimin"]
[PlyCount "71"]
[EventDate "2021.??.??"]
[TimeControl "90+30"]
[WhiteClock "0:01:25"]
[BlackClock "0:00:54"]

{[%evp 0,71,18,25,84,69,84,88,85,75,93,93,83,63,67,26,49,10,87,72,81,55,98,54,
54,43,67,66,115,70,108,84,130,102,135,83,103,95,95,95,107,87,151,118,118,85,68,
22,167,148,168,168,168,73,112,112,139,115,185,119,186,169,257,245,267,267,267,
207,492,332,706,706,29991,29992]} 1. e4 {[%emt 0:00:00]} d6 {[%emt 0:00:00]} 2.
d4 {[%emt 0:00:00]} Nf6 {[%emt 0:00:00]} 3. Nc3 {[%emt 0:00:00]} e5 {[%emt 0:
00:00]} 4. Nf3 {[%emt 0:00:00]} Nbd7 {[%emt 0:00:00]} 5. Bc4 {[%emt 0:00:00]}
Be7 {[%emt 0:00:00]} 6. O-O {[%emt 0:00:00]} O-O {[%emt 0:00:00]} 7. Re1 {
[%emt 0:00:00]} c6 {[%emt 0:00:00]} 8. a4 {[%emt 0:00:00]} Re8 {[%emt 0:00:00]}
9. h3 {[%emt 0:00:00]} h6 {[%emt 0:00:00]} 10. Be3 {[%emt 0:00:00]} Qc7 {
[%emt 0:00:00]} 11. Ba2 {[%emt 0:00:00]} Nf8 {[%emt 0:00:00]} 12. Qd3 {[%emt 0:
00:00]} exd4 {[%emt 0:00:00]} 13. Nxd4 {[%emt 0:00:00]} Ng6 {[%emt 0:00:00]}
14. a5 {[%emt 0:00:00]} Bf8 {[%emt 0:00:00]} 15. Bd2 {[%emt 0:00:00]} Re5 {
[%emt 0:00:00]} 16. b4 {[%emt 0:00:00]} Nh5 {[%emt 0:00:00]} 17. Nce2 {[%emt 0:
07:01]} Nf6 {[%emt 0:00:00]} 18. Nf4 {[%emt 0:00:00]} Nxf4 {[%emt 0:00:00]} 19.
Bxf4 {[%emt 0:00:00]} Re8 {[%emt 0:00:00]} 20. Re3 {[%emt 0:00:00]} Be6 {
[%emt 0:00:00]} 21. Nxe6 {[%emt 0:00:00]} fxe6 {[%emt 0:00:00]} 22. e5 {
[%emt 0:00:00]} Nd5 {[%emt 0:00:00]} 23. exd6 {[%emt 0:00:00]} Qf7 {[%emt 0:03:
30]} 24. Be5 {[%emt 0:00:00]} Rad8 {[%emt 0:00:01]} 25. Rg3 {[%emt 0:00:00]}
Nxb4 {[%emt 0:00:21]} 26. Qe2 {[%emt 0:01:49]} Nxa2 {[%emt 0:03:41]} 27. Rxa2 {
[%emt 0:00:01]} Rd7 {[%emt 0:00:01]} 28. Ra4 {[%emt 0:00:36]} Red8 {[%emt 0:01:
15]} 29. Rag4 {[%emt 0:01:12]} Qf5 {[%emt 0:02:05]} 30. Rf3 {[%emt 0:04:00]}
Qh7 {[%emt 0:00:03]} 31. Qc4 {[%emt 0:00:16]} Re8 {[%emt 0:01:29]} 32. Rf6 {
[%emt 0:00:42]} g5 {[%emt 0:02:55]} 33. f4 {[%emt 0:01:14]} Qg7 {[%emt 0:01:54]
} 34. fxg5 {[%emt 0:00:38]} hxg5 {[%emt 0:00:40]} 35. Rxe6 {[%emt 0:00:33]} Qf7
{[%emt 0:00:11]} 36. Rxg5+ {[%emt 0:00:03]} 1-0